bitfinex-derivatives/quotes_BTCF0:USTF0_20241203
["timestamp","ask_amount","ask_price","bid_price","bid_amount"]
[1733195179305,0.051994,96149.0,96131.0,0.43066023]
[1733195179511,0.0156,96145.0,96144.0,0.051997]
[1733195179807,0.05207692,96153.0,96145.0,0.051997]
[1733195179808,0.11194196,96147.0,96145.0,0.051997]
[1733195179999,0.051993,96152.0,96151.0,0.051993]
[1733195180198,0.20715374,96152.0,96151.0,0.051993]
[1733195180401,0.31909092,96152.0,96151.0,0.051993]
[1733195180609,0.16393018,96152.0,96151.0,0.051993]
[1733195180907,0.32065277,96152.0,96151.0,0.051993]
[1733195181112,0.32665277,96152.0,96151.0,0.052993]
[1733195182102,0.33065277,96152.0,96151.0,0.052993]
[1733195183103,0.33065277,96152.0,96151.0,0.001]
[1733195183709,0.21871559,96152.0,96151.0,0.001]
[1733195185606,0.051999,96141.0,96140.0,0.0026]
[1733195185801,0.052003,96133.0,96131.0,0.00156023]
[1733195186008,0.3608,96132.0,96131.0,0.00156023]
[1733195186911,0.42178,96132.0,96131.0,0.00156023]
[1733195187417,0.42178,96132.0,96131.0,0.00656023]
[1733195188117,0.44131084,96132.0,96131.0,0.00656023]
[1733195188309,0.44131084,96132.0,96131.0,0.00756023]
[1733195194216,0.49331484,96132.0,96131.0,0.00756023]
[1733195204217,0.49331484,96132.0,96131.0,0.00656023]
[1733195205624,0.49731484,96132.0,96131.0,0.00656023]
[1733195205824,0.49731484,96132.0,96131.0,0.00356023]
[1733195206420,0.50331484,96132.0,96131.0,0.00256023]
[1733195208423,0.50331484,96132.0,96131.0,0.001]
[1733195208917,0.65854341,96132.0,96120.0,0.0026]
[1733195209112,0.052013,96115.0,96114.0,0.0026]
[1733195209315,0.052014,96113.0,96107.0,0.13464]
[1733195209527,0.3608,96108.0,96107.0,0.13204]
[1733195210426,0.3608,96108.0,96105.0,0.184058]
[1733195210730,0.3608,96108.0,96105.0,0.13204]
[1733195211222,0.3618,96108.0,96105.0,0.13204]
[1733195211622,0.3628,96108.0,96107.0,0.004]
[1733195211828,0.3618,96108.0,96107.0,0.004]
[1733195212222,0.052017,96107.0,96106.0,0.00110144]
[1733195212928,0.052017,96107.0,96106.0,0.00010144]
[1733195213527,0.055017,96107.0,96106.0,0.00010144]
[1733195215228,0.057017,96107.0,96106.0,0.00010144]
[1733195217436,0.005,96107.0,96106.0,0.05211944]
[1733195222033,0.001,96107.0,96106.0,0.05211944]
[1733195222531,0.002,96107.0,96106.0,0.05211944]
[1733195223426,0.001,96107.0,96106.0,0.05211944]
[1733195223630,0.002,96107.0,96106.0,0.05211944]
[1733195224132,0.001,96107.0,96106.0,0.05211944]
[1733195224332,0.002,96107.0,96106.0,0.05211944]
[1733195227430,0.001,96107.0,96106.0,0.05211944]
[1733195227625,0.052012,96116.0,96106.0,0.00010144]
[1733195227829,0.052012,96116.0,96106.0,0.06829473]
[1733195229135,0.01928122,96118.0,96117.0,0.052012]
[1733195229338,0.36660001,96120.0,96119.0,0.052011]
[1733195229339,0.00060001,96120.0,96119.0,0.052011]
[1733195229527,0.366,96128.0,96114.0,0.13208]
[1733195229728,0.052008,96123.0,96121.0,0.052009]
[1733195231236,0.056008,96123.0,96121.0,0.052009]
[1733195232341,0.06098,96122.0,96121.0,0.052009]
[1733195232537,0.052011,96119.0,96116.0,0.052012]
[1733195232740,0.3608,96117.0,96109.0,0.052016]
[1733195232936,0.052015,96111.0,96109.0,0.052016]
[1733195233133,0.0303,96110.0,96106.0,0.00010144]
[1733195233436,0.0303,96110.0,96108.0,0.052016]
[1733195233437,0.0609,96110.0,96108.0,0.052016]
[1733195233739,0.3608,96117.0,96116.0,0.052012]
[1733195234738,0.0355,96121.0,96116.0,0.3608]
[1733195234943,0.0303,96121.0,96120.0,0.05201]
[1733195235140,0.06498,96122.0,96120.0,0.05201]
[1733195235439,0.06098,96122.0,96120.0,0.05201]
[1733195235643,0.06098,96122.0,96121.0,0.13208]
[1733195237241,0.06498,96122.0,96121.0,0.13208]
[1733195237549,0.07198,96122.0,96121.0,0.13208]
[1733195244541,0.123989,96122.0,96120.0,0.05201]
[1733195246644,0.14282653,96122.0,96120.0,0.05201]
[1733195249344,0.09081753,96122.0,96120.0,0.05201]
[1733195253355,0.02983753,96122.0,96120.0,0.05201]
[1733195253661,0.011,96122.0,96120.0,0.05201]
[1733195255355,0.011,96122.0,96120.0,0.07099351]
[1733195256748,0.011,96122.0,96121.0,0.0319]
[1733195258864,0.012,96122.0,96121.0,0.0319]
[1733195261249,0.012,96122.0,96121.0,0.3927]
[1733195264855,0.012,96122.0,96121.0,0.444709]
[1733195265051,0.012,96122.0,96121.0,0.412809]
[1733195266757,0.012,96122.0,96121.0,0.544769]
[1733195267164,0.012,96122.0,96121.0,0.183969]
[1733195267855,0.012,96122.0,96121.0,0.052009]
[1733195268658,0.064009,96122.0,96121.0,0.052009]
[1733195269568,0.012,96122.0,96121.0,0.052009]
[1733195271260,0.07298,96122.0,96121.0,0.052009]
[1733195286774,0.124989,96122.0,96121.0,0.052009]
[1733195291369,0.07298,96122.0,96121.0,0.052009]
[1733195294976,0.124989,96122.0,96121.0,0.052009]
[1733195296175,0.07298,96122.0,96121.0,0.052009]
[1733195296566,0.07298,96122.0,96121.0,0.412809]
[1733195297266,0.07298,96122.0,96121.0,0.052009]
[1733195299779,0.08028,96122.0,96121.0,0.052009]
[1733195313079,0.0886,96122.0,96121.0,0.052009]
[1733195316081,0.09692,96122.0,96121.0,0.052009]
[1733195318384,0.09692,96122.0,96121.0,0.07171299]
[1733195320485,0.09692,96122.0,96121.0,0.052009]
[1733195329594,0.09692,96122.0,96121.0,0.183769]
[1733195330195,0.09692,96122.0,96121.0,0.052009]
[1733195330390,0.09692,96122.0,96121.0,0.183649]
[1733195334999,0.11607016,96122.0,96121.0,0.183649]
[1733195339004,0.09692,96122.0,96121.0,0.183649]
[1733195344493,0.09692,96122.0,96121.0,0.052009]
[1733195351409,0.09692,96122.0,96108.0,0.3608]
[1733195351712,0.09692,96122.0,96100.0,0.1]
[1733195351713,0.052015,96111.0,96109.0,0.13168]
[1733195351908,0.0311,96110.0,96109.0,0.13168]
[1733195352709,0.083115,96110.0,96108.0,0.052016]
[1733195353408,0.00832,96109.0,96108.0,0.052016]
[1733195354709,0.01032,96109.0,96108.0,0.052016]
[1733195355012,0.01763,96109.0,96108.0,0.052016]
[1733195356111,0.069646,96109.0,96108.0,0.052016]
[1733195357001,0.01763,96109.0,96108.0,0.052016]
[1733195361316,0.01763,96109.0,96108.0,0.07168791]
[1733195364314,0.01763,96109.0,96108.0,0.052016]
[1733195368713,0.01763,96109.0,96108.0,0.183616]
[1733195370813,0.01763,96109.0,96108.0,0.544416]
[1733195372314,0.01763,96109.0,96108.0,0.412816]
[1733195372512,0.01763,96109.0,96108.0,0.544416]
[1733195386247,0.07861,96109.0,96108.0,0.544416]
[1733195387935,0.08693,96109.0,96108.0,0.544416]
[1733195389337,0.08693,96109.0,96108.0,0.412816]
[1733195389638,0.08693,96109.0,96108.0,0.544416]
[1733195390543,0.0052,96119.0,96118.0,0.052011]
[1733195390846,0.3608,96128.0,96118.0,0.052011]
[1733195390847,0.0052,96127.0,96126.0,0.052007]
[1733195391044,0.3608,96128.0,96127.0,0.052006]
[1733195393344,0.3698,96128.0,96127.0,0.052006]
[1733195394246,0.3758,96128.0,96127.0,0.052006]
[1733195405357,0.427806,96128.0,96127.0,0.052006]
[1733195405657,0.427806,96128.0,96110.0,0.06819329]
[1733195405658,0.05201,96122.0,96121.0,0.052008]
[1733195406852,0.06301,96122.0,96121.0,0.052008]
[1733195407154,0.06301,96122.0,96108.0,0.43792]
[1733195407155,0.011,96122.0,96108.0,0.43792]
[1733195407354,0.3608,96111.0,96110.0,0.052015]
[1733195407950,0.37991511,96111.0,96110.0,0.052015]
[1733195408556,0.38191511,96111.0,96110.0,0.052015]
[1733195409755,0.43393011,96111.0,96110.0,0.052015]
[1733195410150,0.43493011,96111.0,96110.0,0.052015]
[1733195411563,0.415815,96111.0,96110.0,0.052015]
[1733195413556,0.3638,96111.0,96110.0,0.052015]
[1733195417151,0.003,96111.0,96110.0,0.052015]
[1733195419358,0.003,96111.0,96110.0,0.07157521]
[1733195422868,0.01132,96111.0,96110.0,0.07157521]
[1733195424768,0.01132,96111.0,96110.0,0.20297521]
[1733195428667,0.01132,96111.0,96110.0,0.07157521]
[1733195428872,0.01132,96111.0,96110.0,0.20297521]
[1733195429569,0.01905,96111.0,96110.0,0.20297521]
[1733195432472,0.01905,96111.0,96110.0,0.56377521]
[1733195432678,0.00773,96111.0,96110.0,0.56377521]
[1733195432878,0.0104,96123.0,96121.0,0.052009]
[1733195433077,0.0052,96128.0,96127.0,0.052006]
[1733195433267,9.764e-05,96131.0,96130.0,0.052005]
[1733195433577,9.764e-05,96131.0,96130.0,0.183405]
[1733195434782,0.00909764,96131.0,96130.0,0.183405]
[1733195435082,0.01509764,96131.0,96130.0,0.183405]
[1733195445487,0.01509764,96131.0,96130.0,0.052005]
[1733195445786,0.01509764,96131.0,96130.0,0.183405]
[1733195457295,0.02341764,96131.0,96130.0,0.183405]
[1733195460814,0.01441764,96131.0,96130.0,0.183405]
[1733195460993,0.01941764,96131.0,96130.0,0.183405]
[1733195461302,0.01441764,96131.0,96130.0,0.183405]
[1733195461498,0.02041764,96131.0,96130.0,0.183405]
[1733195461998,0.02041764,96131.0,96130.0,0.052005]
[1733195462297,0.01741764,96131.0,96130.0,0.183285]
[1733195463000,0.01441764,96131.0,96130.0,0.183285]
[1733195463196,0.01741764,96131.0,96130.0,0.183285]
[1733195470192,0.06942164,96131.0,96130.0,0.13128]
[1733195470800,0.10162164,96131.0,96130.0,0.13128]
[1733195471210,0.052009,96122.0,96121.0,0.489969]
[1733195471416,0.052009,96122.0,96121.0,0.620569]
[1733195471911,0.052009,96122.0,96121.0,0.56856]
[1733195472105,0.052009,96122.0,96121.0,0.13128]
[1733195472506,0.053009,96122.0,96121.0,0.13128]
[1733195472713,0.053009,96122.0,96119.0,0.13128]
[1733195472714,0.001,96122.0,96119.0,0.13128]
[1733195472914,0.05201,96120.0,96119.0,0.13128]
[1733195477716,0.052015,96112.0,96111.0,0.052014]
[1733195477922,0.052015,96112.0,96111.0,0.183294]
[1733195478419,0.0326,96113.0,96110.0,0.00156048]
[1733195478619,0.052015,96111.0,96110.0,0.00156048]
[1733195478922,0.05202,96101.0,96100.0,0.23128]
[1733195479126,0.41282,96101.0,96100.0,0.1]
[1733195480020,0.42114,96101.0,96100.0,0.1]
[1733195480520,0.42114,96101.0,96100.0,0.104]
[1733195481019,0.052028,96087.0,96086.0,0.00064]
[1733195481224,0.052029,96085.0,96084.0,0.13132]
[1733195481826,0.052031,96082.0,96080.0,0.13199]
[1733195483121,0.053031,96082.0,96080.0,0.13699]
[1733195484726,0.054031,96082.0,96080.0,0.13799]
[1733195485323,0.054031,96082.0,96080.0,0.00679]
[1733195488530,0.053031,96082.0,96080.0,0.00579]
[1733195488731,0.054031,96082.0,96080.0,0.00579]
[1733195488920,0.055031,96082.0,96080.0,0.00079]
[1733195489322,0.054031,96082.0,96080.0,0.00079]
[1733195489530,0.055031,96082.0,96080.0,0.00079]
[1733195490033,0.056031,96082.0,96080.0,0.00079]
[1733195491526,0.056031,96082.0,96081.0,0.052031]
[1733195491527,0.004,96082.0,96081.0,0.052031]
[1733195491721,0.004,96082.0,96081.0,0.084631]
[1733195492435,0.001,96082.0,96081.0,0.0326]
[1733195492629,0.003,96082.0,96081.0,0.084631]
[1733195493028,0.004,96082.0,96081.0,0.084631]
[1733195494625,0.003,96082.0,96081.0,0.084631]
[1733195494830,0.003,96082.0,96081.0,0.085631]
[1733195495034,0.3608,96087.0,96086.0,0.052028]
[1733195495336,0.3608,96087.0,96086.0,0.183268]
[1733195496130,0.3628,96087.0,96086.0,0.13124]
[1733195496633,0.3608,96087.0,96086.0,0.13124]
[1733195496825,0.3628,96087.0,96086.0,0.13124]
[1733195497430,0.3628,96087.0,96085.0,0.052028]
[1733195497737,0.3628,96087.0,96086.0,0.13124]
[1733195497738,0.38333641,96087.0,96086.0,0.13124]
[1733195498226,0.38533641,96087.0,96086.0,0.13124]
[1733195498633,0.38133641,96087.0,96086.0,0.13124]
[1733195498841,0.38433641,96087.0,96086.0,0.13124]
[1733195499231,0.38033641,96087.0,96086.0,0.13124]
[1733195499432,0.3668,96087.0,96086.0,0.13124]
[1733195502533,0.3668,96087.0,96085.0,0.052028]
[1733195502841,0.3668,96087.0,96086.0,0.13124]
[1733195503443,0.3668,96087.0,96086.0,0.183268]
[1733195503736,0.3648,96087.0,96086.0,0.183268]
[1733195503948,0.3668,96087.0,96086.0,0.183268]
[1733195505841,0.3628,96087.0,96086.0,0.183268]
[1733195506047,0.3658,96087.0,96086.0,0.183268]
[1733195506744,0.3648,96087.0,96086.0,0.183268]
[1733195507842,0.3638,96087.0,96086.0,0.183268]
[1733195508234,0.3608,96087.0,96086.0,0.183268]
[1733195508435,0.003,96087.0,96086.0,0.183268]
[1733195508645,0.0156,96094.0,96093.0,0.052025]
[1733195508834,0.01572975,96101.0,96099.0,0.052021]
[1733195509040,0.00012975,96101.0,96100.0,0.13124]
[1733195509746,0.00844975,96101.0,96100.0,0.13124]
[1733195510941,0.01044975,96101.0,96100.0,0.13124]
[1733195511143,0.01544975,96101.0,96100.0,0.13124]
[1733195511934,0.01544975,96101.0,96099.0,0.052021]
[1733195511935,0.01544975,96101.0,96093.0,0.412825]
[1733195512135,0.3935,96100.0,96094.0,0.13112]
[1733195512340,0.052023,96096.0,96095.0,0.13112]
[1733195512544,0.052025,96093.0,96092.0,0.13112]
[1733195512846,0.052025,96093.0,96091.0,0.052025]
[1733195513148,0.40970001,96100.0,96075.0,0.0026]
[1733195513149,0.3608,96092.0,96075.0,0.0026]
[1733195513341,0.06819329,96090.0,96080.0,0.06819329]
[1733195513541,0.052029,96086.0,96085.0,0.052028]
[1733195513845,0.052029,96086.0,96085.0,0.183148]
[1733195515149,0.052029,96086.0,96085.0,0.186148]
[1733195515644,0.056029,96086.0,96085.0,0.183148]
[1733195516043,0.057029,96086.0,96085.0,0.183148]
[1733195516649,0.056029,96086.0,96085.0,0.183148]
[1733195516951,0.07705611,96086.0,96085.0,0.183148]
[1733195523545,0.07705611,96086.0,96085.0,0.052028]
[1733195524447,0.08537611,96086.0,96085.0,0.052028]
[1733195524658,0.44617611,96086.0,96085.0,0.052028]
[1733195525252,0.08537611,96086.0,96085.0,0.052028]
[1733195526946,0.08537611,96086.0,96083.0,0.13112]
[1733195526947,0.05203,96084.0,96083.0,0.13112]
[1733195528252,0.05603,96084.0,96083.0,0.13112]
[1733195530454,0.05603,96084.0,96082.0,0.052031]
[1733195530455,0.004,96084.0,96082.0,0.052031]
[1733195530650,0.05203,96083.0,96082.0,0.052031]
[1733195530953,0.05203,96083.0,96082.0,0.183151]
[1733195532456,0.05303,96083.0,96082.0,0.183151]
[1733195533261,0.05503,96083.0,96082.0,0.183151]
[1733195537456,0.05503,96083.0,96082.0,0.052031]
[1733195537658,0.05503,96083.0,96082.0,0.183151]
[1733195544374,0.06335,96083.0,96082.0,0.183151]
[1733195547668,0.01132,96083.0,96082.0,0.183151]
[1733195548367,0.003,96084.0,96083.0,0.05203]
[1733195548569,0.003,96084.0,96083.0,0.47733]
[1733195549762,0.057224,96094.0,96083.0,0.47733]
[1733195549967,0.057224,96094.0,96093.0,0.043705]
[1733195550164,0.052024,96094.0,96093.0,0.043705]
[1733195550868,0.055024,96094.0,96093.0,0.043705]
[1733195551275,0.003,96094.0,96093.0,0.404505]
[1733195551574,0.004,96094.0,96093.0,0.437305]
[1733195552874,0.001,96094.0,96093.0,0.437305]
[1733195553172,0.011,96094.0,96093.0,0.438305]
[1733195554473,0.011,96094.0,96093.0,0.45763809]
[1733195559665,0.011,96094.0,96093.0,0.55587809]
[1733195559974,0.011,96094.0,96093.0,0.405505]
[1733195560277,0.423824,96094.0,96093.0,0.175745]
[1733195560571,0.423824,96094.0,96093.0,0.13204]
[1733195561674,0.423824,96094.0,96093.0,0.184065]
[1733195562176,0.44301324,96094.0,96093.0,0.184065]
[1733195563869,0.423824,96094.0,96093.0,0.184065]
[1733195564075,0.011,96094.0,96093.0,0.184065]
[1733195566474,0.01191,96094.0,96093.0,0.184065]
[1733195575378,0.01191,96094.0,96093.0,0.544865]
[1733195591194,0.01191,96094.0,96093.0,0.56569425]
[1733195598594,0.01191,96094.0,96093.0,0.544745]
[1733195598988,0.01191,96094.0,96093.0,0.183945]
[1733195599701,0.063934,96094.0,96093.0,0.183945]
[1733195600294,0.063934,96094.0,96093.0,0.053025]
[1733195600698,0.063934,96094.0,96093.0,0.001]
[1733195602705,0.063934,96094.0,96088.0,0.052027]
[1733195603005,0.052027,96089.0,96088.0,0.052027]
[1733195604102,0.057027,96089.0,96088.0,0.053027]
[1733195604601,0.057927,96089.0,96088.0,0.053027]
[1733195604802,0.0059,96089.0,96080.0,0.00064]
[1733195605008,0.3608,96082.0,96073.0,0.00156112]
[1733195605195,0.3608,96074.0,96073.0,0.00156112]
[1733195605607,0.0156,96080.0,96079.0,0.052032]
[1733195605800,0.0627,96081.0,96079.0,0.052032]
[1733195606001,0.096,96081.0,96079.0,0.052032]
[1733195606807,0.11568425,96081.0,96079.0,0.052032]
[1733195607794,0.11668425,96081.0,96079.0,0.052032]
[1733195609296,0.052032,96080.0,96079.0,0.052032]
[1733195610411,0.053032,96080.0,96079.0,0.052032]
[1733195610908,0.001,96080.0,96079.0,0.052032]
[1733195612211,0.001,96080.0,96079.0,0.07136035]
[1733195617706,0.001,96080.0,96079.0,0.43216035]
[1733195619714,0.001,96080.0,96079.0,0.86964035]
[1733195624925,0.001,96080.0,96079.0,1.00044035]
[1733195627109,0.001,96080.0,96079.0,0.86964035]
[1733195627318,0.0019,96080.0,96079.0,0.981112]
[1733195633615,0.0019,96080.0,96079.0,0.620312]
[1733195645017,0.0009,96080.0,96079.0,0.620312]
[1733195645217,0.0019,96080.0,96079.0,0.620312]
[1733195648521,0.0019,96080.0,96079.0,0.182832]
[1733195651633,0.0009,96080.0,96079.0,0.182832]
[1733195660950,0.0009,96080.0,96079.0,0.20366596]
[1733195671656,0.3608,96095.0,96079.0,0.20366596]
[1733195671846,0.3634,96100.0,96079.0,0.20366596]
[1733195671847,0.36136001,96100.0,96085.0,0.06819329]
[1733195672046,0.412821,96100.0,96096.0,0.052023]
[1733195672252,0.05258101,96100.0,96097.0,0.13068]
[1733195672453,0.052021,96100.0,96097.0,0.13068]
[1733195672654,0.052021,96100.0,96097.0,0.182702]
[1733195672854,0.052021,96100.0,96097.0,0.13068]
[1733195673158,0.052021,96100.0,96098.0,0.052022]
[1733195673359,0.0706,96099.0,96098.0,0.052022]
[1733195674153,0.0756,96099.0,96098.0,0.052022]
[1733195675345,0.127621,96099.0,96098.0,0.052022]
[1733195677350,0.488421,96099.0,96098.0,0.052022]
[1733195683571,0.052029,96086.0,96085.0,0.052029]
[1733195683762,0.052029,96086.0,96085.0,0.182709]
[1733195684859,0.052029,96086.0,96085.0,0.052029]
[1733195685061,0.057029,96086.0,96085.0,0.182709]
[1733195686168,0.057029,96086.0,96085.0,0.052029]
[1733195686363,0.057029,96086.0,96085.0,0.182709]
[1733195686566,0.057029,96086.0,96085.0,0.052029]
[1733195686775,0.057029,96086.0,96080.0,0.0104]
[1733195686776,0.052031,96081.0,96080.0,0.062431]
[1733195687067,0.052031,96081.0,96080.0,0.182711]
[1733195688167,0.053031,96081.0,96080.0,0.182711]
[1733195689971,0.052033,96078.0,96077.0,0.00156124]
[1733195690268,0.052033,96078.0,96077.0,0.13224124]
[1733195691061,0.052033,96078.0,96077.0,0.13324124]
[1733195691262,0.052033,96078.0,96077.0,0.13424124]
[1733195691470,0.052033,96078.0,96077.0,0.00356124]
[1733195691675,0.052033,96078.0,96077.0,0.13424124]
[1733195691867,0.052033,96078.0,96077.0,0.18627424]
[1733195694967,0.052033,96078.0,96077.0,0.05559424]
[1733195695173,0.052033,96078.0,96077.0,0.18619424]
[1733195702783,0.05203,96083.0,96082.0,0.05203]
[1733195704186,0.05303,96083.0,96082.0,0.05203]
[1733195704573,0.05303,96083.0,96082.0,0.18263]
[1733195704784,0.05503,96083.0,96082.0,0.18263]
[1733195705783,0.003,96083.0,96082.0,0.18263]
[1733195705982,0.003,96083.0,96082.0,0.54343]
[1733195706177,0.0026,96100.0,96099.0,0.052021]
[1733195706375,0.00012975,96101.0,96099.0,0.543421]
[1733195706573,0.00012975,96101.0,96099.0,0.412821]
[1733195706782,0.00012975,96101.0,96100.0,0.1306]
[1733195706984,0.00012975,96101.0,96099.0,0.3608]
[1733195707283,0.057021,96100.0,96099.0,0.3608]
[1733195707480,0.057021,96100.0,96099.0,0.4914]
[1733195708089,0.129521,96100.0,96099.0,0.4914]
[1733195708677,0.129521,96100.0,96099.0,0.1306]
[1733195709184,0.129521,96100.0,96095.0,0.43812]
[1733195709185,0.052023,96096.0,96095.0,0.43812]
[1733195709378,0.052023,96096.0,96095.0,0.56812]
[1733195709975,0.052023,96096.0,96095.0,0.620144]
[1733195710182,0.0725,96100.0,96099.0,0.053021]
[1733195710379,0.009,96100.0,96099.0,0.053021]
[1733195710992,0.009,96100.0,96099.0,0.052021]
[1733195711383,0.05215075,96101.0,96100.0,0.052021]
[1733195711781,0.00012975,96101.0,96100.0,0.412821]
[1733195712582,0.00912975,96101.0,96100.0,0.412821]
[1733195714086,0.01412975,96101.0,96100.0,0.413821]
[1733195743400,0.01412975,96101.0,96100.0,0.544381]
[1733195748899,0.01412975,96101.0,96100.0,0.413821]
[1733195749300,0.01412975,96101.0,96100.0,0.544381]
[1733195751096,0.01412975,96101.0,96100.0,0.413821]
[1733195751293,0.01412975,96101.0,96100.0,0.544341]
[1733195754310,0.01929803,96106.0,96105.0,0.052018]
[1733195754514,0.05204,96113.0,96112.0,0.052014]
[1733195754715,0.05204,96113.0,96112.0,0.182494]
[1733195754902,0.20764341,96113.0,96112.0,0.182494]
[1733195755307,0.17476972,96113.0,96112.0,0.182494]
[1733195756308,0.17576972,96113.0,96112.0,0.186494]
[1733195757812,0.17676972,96113.0,96112.0,0.194494]
[1733195760007,0.17676972,96113.0,96112.0,0.064014]
[1733195760321,0.22878372,96113.0,96112.0,0.012]
[1733195760617,0.22878372,96113.0,96086.0,0.3608]
[1733195760618,0.052022,96098.0,96097.0,1e-08]
[1733195760807,0.412822,96098.0,96097.0,1e-08]
[1733195761007,0.56929181,96098.0,96097.0,1e-08]
[1733195761620,0.57329181,96098.0,96097.0,1e-08]
[1733195762006,0.57329181,96098.0,96097.0,0.00100001]
[1733195762007,0.58129181,96098.0,96097.0,0.00100001]
[1733195763716,0.60097102,96098.0,96097.0,0.00100001]
[1733195764318,0.60097102,96098.0,96097.0,0.05302201]
[1733195767822,0.54894902,96098.0,96097.0,0.05302201]
[1733195769325,0.60097102,96098.0,96097.0,0.05302201]
[1733195777131,0.60097102,96098.0,96097.0,0.00100001]
[1733195780732,0.60097102,96098.0,96097.0,0.001]
[1733195790945,0.54894902,96098.0,96097.0,0.053022]
[1733195792444,0.60097102,96098.0,96097.0,0.053022]
[1733195794554,0.16846981,96098.0,96097.0,0.053022]
[1733195795038,0.16846981,96098.0,96097.0,0.083022]
[1733195797747,0.22049181,96098.0,96097.0,0.083022]
[1733195798739,0.22049181,96098.0,96097.0,0.05793452]
[1733195802448,0.22049181,96098.0,96097.0,0.02793452]
[1733195803248,0.22049181,96098.0,96086.0,0.0322]
[1733195803249,0.52926981,96098.0,96086.0,0.0322]
[1733195803453,0.052027,96088.0,96087.0,0.1304]
[1733195805448,0.055027,96088.0,96087.0,0.1304]
[1733195806554,0.057027,96088.0,96087.0,0.1304]
[1733195808146,0.005,96088.0,96085.0,0.3608]
[1733195808356,0.16166186,96088.0,96076.0,0.3608]
[1733195808657,0.052032,96079.0,96077.0,0.1304]
[1733195809852,0.0182,96087.0,96076.0,0.414834]
[1733195809853,0.052033,96078.0,96076.0,0.3628]
[1733195810059,0.052033,96078.0,96077.0,0.1314]
[1733195810459,0.05210233,96078.0,96077.0,0.001]
[1733195810954,0.11470233,96078.0,96077.0,0.001]
[1733195811347,0.11470233,96078.0,96071.0,0.00011829]
[1733195811348,0.27144499,96078.0,96071.0,0.00011829]
[1733195811549,0.052036,96072.0,96071.0,0.00011829]
[1733195812648,0.052036,96072.0,96071.0,0.00211829]
[1733195812849,0.20848354,96072.0,96071.0,0.00711829]
[1733195813247,0.20848354,96072.0,96071.0,0.00511829]
[1733195813456,0.20848354,96072.0,96071.0,0.00711829]
[1733195814156,6.933e-05,96078.0,96071.0,0.00711829]
[1733195814356,6.933e-05,96078.0,96077.0,0.412833]
[1733195814545,0.0052,96080.0,96077.0,0.850353]
[1733195814749,0.052019,96104.0,96103.0,0.052019]
[1733195814950,0.052019,96104.0,96083.0,0.05203]
[1733195814951,0.052017,96108.0,96106.0,0.052018]
[1733195815160,0.052017,96108.0,96107.0,0.13032]
[1733195815546,0.20907522,96108.0,96107.0,0.13032]
[1733195816260,0.22607522,96108.0,96107.0,0.13032]
[1733195816648,0.21707522,96108.0,96107.0,0.13032]
[1733195816851,0.052021,96100.0,96098.0,0.052022]
[1733195817058,0.052021,96100.0,96099.0,0.13032]
[1733195817247,0.156749,96099.0,96098.0,0.052022]
[1733195817452,0.156749,96099.0,96098.0,0.182342]
[1733195817657,0.052021,96100.0,96098.0,0.182342]
[1733195817851,0.3608,96106.0,96095.0,0.032]
[1733195818053,0.3608,96106.0,96092.0,0.3608]
[1733195818054,0.3608,96098.0,96077.0,0.79892]
[1733195818260,0.3608,96089.0,96087.0,0.052028]
[1733195818557,0.052026,96091.0,96089.0,0.052027]
[1733195818959,0.3608,96098.0,96090.0,0.13032]
[1733195819156,0.414822,96098.0,96090.0,0.13032]
[1733195819457,0.414822,96098.0,96096.0,0.052023]
[1733195819653,0.054022,96098.0,96096.0,0.052023]
[1733195819959,0.052023,96096.0,96092.0,0.052025]
[1733195820156,0.008,96098.0,96092.0,0.052025]
[1733195820756,0.008,96098.0,96090.0,0.13132]
[1733195820757,0.052026,96091.0,96090.0,0.13132]
[1733195821666,0.031,96097.0,96096.0,0.001]
[1733195821853,0.083022,96097.0,96096.0,0.001]
[1733195822254,0.060026,96091.0,96090.0,0.13132]
[1733195822856,0.055026,96091.0,96090.0,0.13032]
[1733195823662,0.057026,96091.0,96090.0,0.13132]
[1733195825166,0.057026,96091.0,96090.0,0.183346]
[1733195825662,0.060026,96091.0,96090.0,0.183346]
[1733195826164,0.060026,96091.0,96090.0,0.13132]
[1733195827766,0.060026,96091.0,96090.0,0.001]
[1733195828064,0.060026,96091.0,96090.0,0.13132]
[1733195832388,0.060026,96091.0,96090.0,0.183346]
[1733195833692,0.0026,96105.0,96104.0,0.052019]
[1733195833892,0.3608,96122.0,96109.0,0.052016]
[1733195833893,0.052016,96110.0,96109.0,0.052016]
[1733195834097,0.052014,96113.0,96112.0,0.052014]
[1733195834299,0.19758574,96113.0,96112.0,0.052014]
[1733195834688,0.041614,96113.0,96112.0,0.052014]
[1733195834895,0.19801369,96113.0,96112.0,0.052014]
[1733195835304,0.21723662,96113.0,96112.0,0.052014]
[1733195836103,0.21823662,96113.0,96112.0,0.061014]
[1733195836396,0.21923662,96113.0,96112.0,0.065014]
[1733195837194,0.27127662,96113.0,96112.0,0.065014]
[1733195842103,0.21923662,96113.0,96112.0,0.065014]
[1733195842321,0.33121202,96113.0,96112.0,0.065014]
[1733195844007,0.28959802,96113.0,96112.0,0.04519762]
[1733195844801,0.28959802,96113.0,96112.0,0.17543762]
[1733195852616,0.28959802,96113.0,96112.0,0.04519762]
[1733195852919,0.28959802,96113.0,96112.0,0.17543762]
[1733195859029,0.34161202,96113.0,96112.0,0.17543762]
[1733195861633,0.28959802,96113.0,96112.0,0.17543762]
[1733195861836,0.28959802,96113.0,96112.0,0.04519762]
[1733195862024,0.28959802,96113.0,96112.0,0.17543762]
[1733195862535,0.28959802,96113.0,96112.0,0.04519762]
[1733195862733,0.28959802,96113.0,96112.0,0.17543762]
[1733195862933,0.28959802,96113.0,96112.0,0.04519762]